Cogmind - Beta 16 @@@ ROGUE MODE // 2025.12.11 @ 22:31:40 Player: Cracklepappy Result: Destroyed by G-47 Trooper with Particle Gun Performance ------------- Evolutions (2) 1000 Regions Visited (8) 1600 Robots Destroyed (243) 1215 Value Destroyed (6161) 6161 Prototype IDs (50) 1000 Alien Tech Used (0) 0 Bonus (3309) 3309 TOTAL SCORE: 14285 Bonus ------- Triggered High Security 500 High Alert Combat Kills 1999 Follower Combat Kills 310 Entered Garrisons 200 Aligned with FarCom 300 Cogmind --------- Core Integrity 0/550 Matter 300/300 Energy 99/100 System Corruption 8% Temperature Cool (9) Movement Core (200) Ox3 Location -8/Garrison Parts ------- > --- POWER (1) -------- (None) > --- PROPULSION (5) --- (None) > --- UTILITY (2) ------ Medium Storage Unit > --- WEAPON (3) ------- Katana > --- INVENTORY (10) --- Surge Thruster Surge Thruster Surge Thruster Firepult Missile Launcher Plasma Cutter Deploy-a-Sentry Peak State ------------ > --- POWER ------------ Light Nuclear Core > --- PROPULSION ------- Improved Flight Unit Improved Flight Unit Improved Flight Unit Improved VTOL Module Improved VTOL Module > --- UTILITY ---------- Improved Heat Sink Medium Storage Unit > --- WEAPON ----------- Enhanced Autogun Greatsword > --- INVENTORY -------- Surge Thruster Advanced Visual Processing Unit Firepult Plasma Cutter Katana Deploy-a-Sentry Deploy-a-Sentry Deploy-a-Sentry [Rating: 41] Favorites ----------- Power Light Ion Engine Engine Light Ion Engine Power Core Light Nuclear Core Propulsion Improved Flight Unit Treads Light Treads Flight Unit Improved Flight Unit Utility Improved Heat Sink Device Improved Heat Sink Storage Large Storage Unit Processor Visual Processing Unit Protection Hardened Light Armor Plating Weapon Improved Assault Rifle Energy Gun Small Laser Ballistic Gun Improved Assault Rifle Ballistic Cannon Light Cannon Launcher Rocket Launcher Special Weapon Mining Laser Slashing Weapon Katana Special Melee Weapon Datajack Build | -11 -10 -10 -9 -9 -9 -8 -8 -8 ------- Run | Yrd Mat Min Mat Min Exi Min Mat Gar Slots Evolved 4 | . . . 2 . . . 2 . Power . | . . . . . . . . . Propulsion 3 | . . . 2 . . . 1 . Utility . | . . . . . . . . . Weapon 1 | . . . . . . . 1 . Parts Attached 102 | 7 15 3 39 3 1 3 29 2 Power 13 | . 3 . 3 1 . . 5 1 Engine 8 | . 3 . 3 1 . . 1 . Core 5 | . . . . . . . 4 1 Reactor . | . . . . . . . . . Propulsion 28 | 2 1 . 12 . . 2 11 . Treads 3 | 2 1 . . . . . . . Leg . | . . . . . . . . . Wheel . | . . . . . . . . . Hover . | . . . . . . . . . Flight 25 | . . . 12 . . 2 11 . Utility 30 | 2 7 1 12 2 . . 5 1 Device 12 | 2 2 . 2 1 . . 4 1 Storage 5 | . 2 . 2 . . . 1 . Processor 4 | . 2 . 2 . . . . . Hackware . | . . . . . . . . . Protection 9 | . 1 1 6 1 . . . . Artifact . | . . . . . . . . . Weapon 31 | 3 4 2 12 . 1 1 8 . Energy Gun 1 | 1 . . . . . . . . Energy Cannon . | . . . . . . . . . Ballistic Gun 18 | 2 2 1 9 . . . 4 . Ballistic Cannon 3 | . 2 . . . 1 . . . Launcher 4 | . . . 2 . . 1 1 . Special Weapon 1 | . . 1 . . . . . . Impact Weapon . | . . . . . . . . . Slashing Weapon 3 | . . . . . . . 3 . Piercing Weapon . | . . . . . . . . . Special Melee Weapon 1 | . . . 1 . . . . . Unidentified Prototypes 3 | . . . 1 1 . . 1 . Parts Lost 15 | . . . 3 1 . . 3 8 Power 2 | . . . . . . . 1 1 Propulsion 9 | . . . 3 1 . . . 5 Utility 2 | . . . . . . . 1 1 Weapon 2 | . . . . . . . 1 1 Highest Loss Streak 8 | . . . 1 1 . . 2 8 To Critical Strikes . | . . . . . . . . . Average Backups 7 | 3 9 15 5 7 6 4 5 5 Power . | . . . . . . . . . Propulsion 1 | . . 3 . . . . 1 3 Utility 2 | . 3 3 1 2 1 . . . Weapon 3 | 1 4 7 2 3 3 3 2 1 Tool/Special . | . . . . . . . . . Unused Backups 20 | . 4 3 2 1 2 . 4 4 Power . | . . . . . . . . . Propulsion 5 | . . 1 1 . . . 1 2 Utility 8 | . 3 . . . 2 . 3 . Weapon 6 | . 1 2 1 1 . . . 1 Tool/Special 1 | . . . . . . . . 1 Average Slot Usage (%) 97 | . 95 100 99 100 100 100 95 87 Engine 9 | . 11 14 11 11 11 11 1 5 Core 1 | . . . . . . . 7 3 Treads 11 | . 27 28 . . . . . . Flight 26 | . . . 43 44 44 44 44 43 Device 5 | . 4 . 9 . . . 7 8 Storage 7 | . 7 14 . 11 11 11 9 9 Processor 3 | . 12 . 1 . . . . . Protection 7 | . 3 14 11 10 11 11 . . Ballistic Gun 15 | . 15 20 16 21 11 11 9 7 Ballistic Cannon 4 | . 10 6 . . 2 10 2 . Launcher 2 | . . . 5 . . . 2 1 Slashing Weapon 1 | . . . . . . . 8 8 Peak Build Rating 41 | 7 10 11 20 26 21 23 41 36 Average Rating 18 | 4 8 10 17 19 18 22 36 32 On Entrance 15 | . 7 10 10 19 19 21 23 33 Avg Prop Armor Cover (%) 27 | 28 28 . . . . . 2 . Naked Turns . | . . . . . . . . . Heaviest Build 32 | 3 32 32 19 20 20 20 25 24 Greatest Support 46 | 20 46 40 20 20 20 20 28 28 Greatest Overweight (x) 3 | . 1 . . . . . 1 3 Average Overweight (x) . | . . . . . . . . . Largest Inventory Capacity 15 | 5 15 15 15 8 8 8 10 10 Average Capacity 9 | 5 10 15 5 8 8 8 9 10 Most Carried 15 | 5 15 15 15 8 8 8 10 10 Average Carried 8 | 3 9 14 5 7 7 8 9 9 Final Capacity 15 | 5 15 15 8 8 8 8 10 10 Final Carried 15 | 5 15 15 8 8 8 8 10 8 Class Distribution -------------------- 42% | Mutant 36% | Sprinter 19% | Scavenger-Sprinter Dominant Class ---------------- Mutant | -10/Materials Mutant | -10/Mines Sprinter | -9/Materials Sprinter | -9/Mines Scavenger-Sprinter | -9/Exiles Sprinter | -8/Mines Sprinter | -8/Materials Scavenger-Sprinter | -8/Garrison Resources | -11 -10 -10 -9 -9 -9 -8 -8 -8 ----------- Run | Yrd Mat Min Mat Min Exi Min Mat Gar Matter Collected 5825 | 304 892 255 1785 231 . 112 1744 502 Remotely . | . . . . . . . . . Salvage Created 7175 | 124 1035 228 2456 501 . 62 2534 235 Parts 440 | 10 60 15 174 24 . 6 143 8 Haulers Intercepted 14 | . 2 . 6 . . . 6 . Recyclers Shooed 8 | . 1 1 3 1 . . 2 . Parts Field Recycled . | . . . . . . . . . Retrieved Matter . | . . . . . . . . . Parts Self-Destructed . | . . . . . . . . . Prevented . | . . . . . . . . . Parts Restored . | . . . . . . . . . Kills | -11 -10 -10 -9 -9 -9 -8 -8 -8 ------- Run | Yrd Mat Min Mat Min Exi Min Mat Gar Combat Hostiles Destroyed 147 | . 14 5 50 8 . 7 53 10 Melee 4 | . . . . . . . 2 2 Guns 52 | . 9 4 22 5 . 2 10 . Cannons 10 | . 5 1 . . . 2 2 . AOE 81 | . . . 28 3 . 3 39 8 Classes Destroyed 17 | 2 6 2 5 . . . 2 . Worker 23 | . 3 . 6 2 . . 12 . Builder 9 | . 2 . 4 . . . 3 . Tunneler 10 | 2 1 2 . 2 . 1 2 . Hauler 14 | . 2 . 6 . . . 6 . Recycler 23 | 1 4 2 6 2 . . 8 . Mechanic 4 | . . . 3 . . . 1 . Operator 3 | . 1 . 2 . . . . . Watcher 11 | . 3 . 4 . . . 4 . Swarmer 28 | . . 3 12 . . 7 6 . Cutter 9 | . . . . . . . 9 . Grunt 81 | . 14 1 22 7 . . 28 9 Brawler 5 | . . . 3 1 . . 1 . Duelist 3 | . . . 3 . . . . . Protector 1 | . . . 1 . . . . . Sentry 18 | . . . 9 . . . 8 1 Hunter 1 | . . . . . . . 1 . Assembled 1 | . . 1 . . . . . . Best Kill Streak 19 | 3 4 2 19 5 . 4 9 4 Combat Bots Only 9 | . 3 2 9 3 . 4 6 4 Max Kills in Single Turn 4 | 1 1 1 4 2 . 4 3 1 Gunslinging 1 | . . . . 1 . . . . Exploded 4 | . . . 4 1 . 3 3 1 Melee 1 | . . . . . . . 1 1 Uniques/NPCs Destroyed . | . . . . . . . . . Combat | -11 -10 -10 -9 -9 -9 -8 -8 -8 -------- Run | Yrd Mat Min Mat Min Exi Min Mat Gar Hostile Shots Fired 431 | . 83 19 109 22 . 10 117 71 Missed 155 | . 17 5 46 9 . 4 52 22 Hits 276 | . 66 14 63 13 . 6 65 49 Melee 7 | . . . . . . . 7 . Projectile 269 | . 66 14 63 13 . 6 58 49 AOE 6 | . . . . . . . 6 . Critical Strikes 10 | . 1 . 2 . . . 5 2 Damage Taken 4071 | . 815 150 796 177 . 80 1319 734 Core 904 | . 168 26 117 23 . 16 288 266 Absorbed by Shields . | . . . . . . . . . Regen/Repaired (Parts) 316 | . 161 . 34 . . . 121 . Core Remaining (%) 61 | 100 . 22 . . . 61 . . Volleys Fired 493 | 6 105 25 178 24 1 5 120 29 Largest 3 | 2 2 2 2 2 1 2 3 1 Hottest 100 | 40 60 100 53 46 23 56 89 36 Shots Fired 850 | 12 201 45 302 43 1 9 208 29 Gun 619 | 12 154 26 264 39 1 4 110 9 Cannon 96 | . 47 11 1 . . 4 33 . Launcher 127 | . . . 37 4 . 1 65 20 Special 8 | . . 8 . . . . . . Kinetic 710 | 12 196 37 265 39 1 8 143 9 Thermal 13 | . 5 8 . . . . . . Explosive 127 | . . . 37 4 . 1 65 20 Electromagnetic . | . . . . . . . . . Robot Hit Streak 17 | 8 9 4 11 17 . 7 6 4 Robot Miss Streak 10 | 1 5 3 5 2 . . 10 2 Penetration Max . | . . . . . . . . . Secondary Targets 4 | . . . 3 1 . . . . Max Gunslinging Chain 1 | . . . 1 1 . . . . Shots Hit Robots 525 | 8 126 16 185 29 4 6 131 20 Core Hits 376 | 6 48 9 117 20 . 7 146 23 Critical Kills 2 | . . . 1 . . . 1 . Critical Parts Destroyed 2 | . 1 . 1 . . . . . Critical Strikes 7 | . 1 . 2 . . . 3 1 Destroy 4 | . 1 . 2 . . . 1 . Blast 1 | . . . . . . . 1 . Sever 2 | . . . . . . . 1 1 Melee Attacks 107 | . . . . . 4 . 62 41 Impact . | . . . . . . . . . Slashing 103 | . . . . . . . 62 41 Piercing . | . . . . . . . . . Sneak Attacks 25 | . . . . . 4 . 21 . Combat Hostiles . | . . . . . . . . . Follow-up Attacks 3 | . . . . . . . 3 . Damage Inflicted 18923 | 86 1678 293 5797 725 . 289 8300 1755 Guns 5359 | 86 1147 180 2686 398 . 58 804 . Cannons 1035 | . 531 103 . . . 63 338 . Explosions 8975 | . . . 3111 327 . 168 4247 1122 Melee 3544 | . . . . . . . 2911 633 Ramming 10 | . . 10 . . . . . . Kinetic 6361 | 86 1645 283 2686 398 . 121 1142 . Thermal 33 | . 33 . . . . . . . Explosive 8975 | . . . 3111 327 . 168 4247 1122 Electromagnetic . | . . . . . . . . . Impact . | . . . . . . . . . Slashing 3544 | . . . . . . . 2911 633 Piercing . | . . . . . . . . . Highest Corruption 8 | . 2 2 . . . . 8 8 Average Corruption 3 | . 1 2 . . . . 4 8 Corruption Purged . | . . . . . . . . . Corruption Blocked . | . . . . . . . . . Effects 87 | . 30 15 . . . . 25 17 Message Errors 18 | . 7 2 . . . . 4 5 Matter Fused 26 | . 7 4 . . . . 9 6 Heat Flow Errors 9 | . 5 2 . . . . 1 1 Energy Discharges 5 | . 2 1 . . . . 2 . Parts Rejected 6 | . 1 1 . . . . 2 2 Parts Fused 1 | . . 1 . . . . . . Data Loss (minor) 11 | . 5 . . . . . 5 1 Data Loss (major) 4 | . 1 1 . . . . . 2 Misfires 4 | . 1 3 . . . . . . Alerts 3 | . 1 . . . . . 2 . Overload Shots . | . . . . . . . . . Overflow Damage 860 | . 7 . 36 . . 30 778 9 Projectiles 16 | . 7 . . . . 2 7 . Explosions 212 | . . . 36 . . 28 148 . Melee 632 | . . . . . . . 623 9 Knockbacks 15 | . 9 2 . . . 1 3 . Impact . | . . . . . . . . . Kinetic 15 | . 9 2 . . . 1 3 . Secondary . | . . . . . . . . . Self-Inflicted Damage 155 | . . . 33 . . 33 89 . Shots 4 | . . . 1 . . 1 2 . Rammed 1 | . . 1 . . . . . . Targets Rammed 1 | . . 1 . . . . . . Kicked . | . . . . . . . . . Crushed . | . . . . . . . . . Highest Temperature 320 | . 279 202 55 83 5 48 320 167 Average Temperature 37 | . 64 37 19 17 2 13 52 14 Received Heat Transfer 1593 | . 486 93 249 99 . . 315 351 Effects 2 | . . . . . . . 2 . Energy Bleed 1 | . . . . . . . 1 . Damage (minor) 1 | . . . . . . . 1 . Siege Activations . | . . . . . . . . . Martial Activations . | . . . . . . . . . Shielding Activations . | . . . . . . . . . Robots Disrupted . | . . . . . . . . . Combat Hostiles . | . . . . . . . . . Robots Corrupted . | . . . . . . . . . Combat Hostiles . | . . . . . . . . . Parts Fried . | . . . . . . . . . Impact Corruptions . | . . . . . . . . . Robots Melted . | . . . . . . . . . Combat Hostiles . | . . . . . . . . . Parts Melted 1 | . . . 1 . . . . . Heat Transferred 75 | . 75 . . . . . . . Parts Sabotaged . | . . . . . . . . . Parts Stolen . | . . . . . . . . . Parts Stripped . | . . . . . . . . . Power Chain Reactions . | . . . . . . . . . Alert | -11 -10 -10 -9 -9 -9 -8 -8 -8 ------- Run | Yrd Mat Min Mat Min Exi Min Mat Gar Maximum Alert Level 5 | . . . 4 3 . . 5 5 Low Security (%) 47 | 100 100 100 5 . . 100 7 . Level 1 10 | . . . 24 . . . 20 . Level 2 10 | . . . 18 83 . . 8 . Level 3 8 | . . . 16 16 . . 17 . Level 4 17 | . . . 35 . . . 29 50 Level 5 4 | . . . . . . . 12 49 High Security . | . . . . . . . 4 . Max Security . | . . . . . . . . . Sterilizations 2 | . . . 1 . . . 1 . Peak Influence 1951 | 10 178 55 1437 722 . 153 1915 1951 Initial 1244 | . . 54 6 554 . . 31 1244 Average 528 | 1 83 9 779 654 . 103 981 1601 Influence Increases 6696 | 15 725 170 2132 274 . 181 2462 737 Destroy 0b10 Robot/C 3120 | . 280 120 1020 160 . 140 1060 340 Destroy 0b10 Robot/NC 500 | 15 80 20 170 30 . 5 180 . Destroy Leader 672 | . 80 10 272 30 . 20 260 . Allied During Kill 44 | . . 4 22 . . . . 18 Successful Hack 245 | . 27 . 103 . . 8 93 14 Select Force Hacks 200 | . 60 . 140 . . . . . Disable Machine 120 | . . . 45 . . . 60 15 Anti-Garrison Action 150 | . . . . . . . . 150 Destroy Structure 760 | . 3 1 270 24 . 8 329 125 Partial Spotted 120 | . . . 45 30 . . 45 . Lose Combat Pursuer 765 | . 195 15 45 . . . 435 75 Influence Decreases 4795 | 15 586 292 726 1085 612 100 628 751 Entered New Map 2298 | . . 85 11 869 612 . 50 671 Time Decay 2297 | 15 586 187 665 206 . 100 538 . Lost Part 150 | . . . 30 10 . . 30 80 Lost Ally 50 | . . 20 20 . . . 10 . Squads Dispatched 33 | . 4 . 15 . . . 14 . Investigation 16 | . 2 . 10 . . . 4 . Extermination . | . . . . . . . . . Reinforcement 13 | . 2 . 2 . . . 9 . Assault 4 | . . . 3 . . . 1 . Garrison . | . . . . . . . . . Intercept . | . . . . . . . . . Searches Triggered . | . . . . . . . . . Construction Impeded 2 | . . . 1 . . . 1 . Haulers Reinforced . | . . . . . . . . . Active Scanning Responses . | . . . . . . . . . Cargo Convoy Interrupts . | . . . . . . . . . Stealth | -11 -10 -10 -9 -9 -9 -8 -8 -8 --------- Run | Yrd Mat Min Mat Min Exi Min Mat Gar Distress Signals 11 | . . . 5 1 . . 5 . Communications Jammed . | . . . . . . . . . Distress Signals . | . . . . . . . . . Times Spotted 262 | . 43 8 69 9 . 7 107 19 Peak Tracking Total 9 | . 6 3 8 3 9 4 7 8 Tactical Retreats 26 | . 6 1 3 . . . 14 2 Traps | -11 -10 -10 -9 -9 -9 -8 -8 -8 ------- Run | Yrd Mat Min Mat Min Exi Min Mat Gar Traps Triggered 10 | . 3 . 1 . . . 3 3 Indirectly . | . . . . . . . . . Trap Hack Attempts 11 | . . . 11 . . . . . Triggered . | . . . . . . . . . Disarmed 1 | . . . 1 . . . . . Reprogrammed . | . . . . . . . . . Reused . | . . . . . . . . . Traps Extracted . | . . . . . . . . . Installed . | . . . . . . . . . Triggered . | . . . . . . . . . Machines | -11 -10 -10 -9 -9 -9 -8 -8 -8 ---------- Run | Yrd Mat Min Mat Min Exi Min Mat Gar Machines Disabled 11 | . . . 3 . 1 . 4 3 Max in Single Turn 1 | . . . 1 . 1 . 1 1 Garrison Relay 2 | . . . . . . . . 2 Machines Repaired . | . . . . . . . . . Machines Dismantled . | . . . . . . . . . Machines Sabotaged 1 | . . . 1 . . . . . Overloaded Fab Kills . | . . . . . . . . . Hacking | -11 -10 -10 -9 -9 -9 -8 -8 -8 --------- Run | Yrd Mat Min Mat Min Exi Min Mat Gar Machines Accessed 41 | . 9 . 16 . 1 1 13 1 Terminals 25 | . 6 . 10 . . 1 7 1 Fabricators . | . . . . . . . . . Repair Stations 5 | . 1 . 2 . . . 2 . Recycling Units 6 | . 2 . 2 . . . 2 . Scanalyzers 3 | . . . 2 . . . 1 . Garrison Access 1 | . . . . . . . 1 . Total Hacks 142 | . 27 . 55 . 1 3 51 5 Successful 77 | . 15 . 32 . 1 1 27 1 Failed 63 | . 11 . 22 . . 2 24 4 Catastrophic 4 | . 1 . 1 . . . 1 1 Database Lockouts 2 | . 1 . 1 . . . . . Manual 66 | . 19 . 23 . 1 3 17 3 Terminals 76 | . 18 . 28 . . 3 22 5 Fabricators . | . . . . . . . . . Repair Stations 25 | . 4 . 9 . . . 12 . Recycling Units 19 | . 5 . 7 . . . 7 . Scanalyzers 17 | . . . 11 . . . 6 . Garrison Access 4 | . . . . . . . 4 . Terminal Hacks 18 | . 4 . 5 . 1 1 6 1 Part Schematic 1 | . . . . . . 1 . . Robot Schematic 1 | . 1 . . . . . . . Robot Analysis 2 | . . . 1 . . . 1 . Prototype ID Bank 7 | . 1 . 3 . . . 3 . Emergency Access Points 1 | . . . . . . . . 1 Locate Traps 3 | . 2 . . . . . 1 . Hauler Manifests 1 | . . . . . . . 1 . Registered Components 1 | . . . 1 . . . . . Proto ID Catalog 1 | . . . . . 1 . . . Fabricator Hacks . | . . . . . . . . . Repair Station Hacks 13 | . 4 . 4 . . . 5 . Scan Component 7 | . 2 . 2 . . . 3 . Repair 6 | . 2 . 2 . . . 2 . Recycling Unit Hacks 3 | . . . 1 . . . 2 . Retrieve Components 3 | . . . 1 . . . 2 . Scanalyzer 10 | . . . 7 . . . 3 . Insert Component 2 | . . . 2 . . . . . Analyze 2 | . . . 2 . . . . . Retrieve Study 6 | . . . 3 . . . 3 . Garrison Access Hacks 1 | . . . . . . . 1 . Unlock Access 1 | . . . . . . . 1 . Unauthorized Hacks 32 | . 7 . 15 . . . 10 . Terminals 20 | . 5 . 8 . . . 7 . Assimilate 1 | . . . . . . . 1 . Operators 1 | . . . . . . . 1 . Skim 15 | . 5 . 5 . . . 5 . Sabotage 3 | . . . 3 . . . . . Fabricators . | . . . . . . . . . Repair Stations 4 | . . . 2 . . . 2 . Patch 4 | . . . 2 . . . 2 . Recycling Units 6 | . 2 . 4 . . . . . Reject 2 | . . . 2 . . . . . Tunnel 4 | . 2 . 2 . . . . . Scanalyzers 1 | . . . 1 . . . . . Extract 1 | . . . 1 . . . . . Garrison Access 1 | . . . . . . . 1 . Watchers 1 | . . . . . . . 1 . Data Cores Recovered 2 | . . . 2 . . . . . Used 1 | . . . 1 . . . . . Hacking Detections 38 | . 8 . 15 . . 1 13 1 Full Trace Events 3 | . . . 1 . . 1 . 1 Feedback Events . | . . . . . . . . . Feedback Blocked . | . . . . . . . . . Robot Schematics Acquired 1 | . 1 . . . . . . . Robots Built . | . . . . . . . . . Authchips . | . . . . . . . . . Time . | . . . . . . . . . Total Robot Build Rating . | . . . . . . . . . Part Schematics Acquired 5 | . . . 4 . . 1 . . Parts Built . | . . . . . . . . . Authchips . | . . . . . . . . . Time . | . . . . . . . . . Total Part Build Rating . | . . . . . . . . . Part Studies Acquired 6 | . . . 3 . . . 3 . Parts Repaired 6 | . 2 . 2 . . . 2 . Time 193 | . 52 . 52 . . . 89 . Parts Recycled . | . . . . . . . . . Recycled Matter . | . . . . . . . . . Retrieved Matter . | . . . . . . . . . Retrieved Components 23 | . . . 10 . . . 13 . Parts Scanalyzed 2 | . . . 2 . . . . . Part Schematics Acquired 2 | . . . 2 . . . . . Parts Damaged . | . . . . . . . . . Bothacking | -11 -10 -10 -9 -9 -9 -8 -8 -8 ------------ Run | Yrd Mat Min Mat Min Exi Min Mat Gar Used RIF Installer . | . . . . . . . . . Robots Hacked 4 | . . . . . 4 . . . Non-combat 3 | . . . . . 3 . . . Combat 1 | . . . . . 1 . . . Robot Hacks Applied 4 | . . . . . 4 . . . parse_system 4 | . . . . . 4 . . . Relay Couplers Released 8 | . . . . . . . . 8 Machine Destruction 8 | . . . . . . . . 8 Fabnet Peak Effective % . | . . . . . . . . . Robots Rewired . | . . . . . . . . . Allies Hacked . | . . . . . . . . . Hacks Repelled . | . . . . . . . . . Allies | -11 -10 -10 -9 -9 -9 -8 -8 -8 -------- Run | Yrd Mat Min Mat Min Exi Min Mat Gar Total Allies 4 | . . 3 . . . . 1 . Largest Group 3 | . . 3 1 . . . 1 . Highest-Rated Group 40 | . . 40 16 . . . 10 . Highest-Rated Ally 16 | . . 16 16 . . . 10 . Total Orders . | . . . . . . . . . Ally Attacks 59 | . . 18 20 . . . . 21 Total Damage 1585 | . . 175 264 . . . . 1146 Kills 14 | . . 3 4 . . . . 7 Allies Corrupted . | . . . . . . . . . Allies Melted . | . . . . . . . . . Turrets Deployed 1 | . . . . . . . . 1 Intel | -11 -10 -10 -9 -9 -9 -8 -8 -8 ------- Run | Yrd Mat Min Mat Min Exi Min Mat Gar Active Infowar (turns) 2183 | 48 1910 . 223 2 . . . . Optics 1670 | . 1670 . . . . . . . Sensors 2 | . . . . 2 . . . . Terrain 130 | 42 88 . . . . . . . Seismic 312 | 48 264 . . . . . . . T.N.C. 223 | . . . 223 . . . . . Robot Analysis Total 2 | . . . 1 . . . 1 . Derelict Logs Recovered 3 | . . 2 . 1 . . . . Drone Launches . | . . . . . . . . . Drone Recoveries . | . . . . . . . . . Exploration | -11 -10 -10 -9 -9 -9 -8 -8 -8 ------------- Run | Yrd Mat Min Mat Min Exi Min Mat Gar Turns Passed 9448 | 111 2545 1256 2587 424 247 205 1605 468 Spaces Moved 13329 | 74 1845 714 4382 952 732 611 3389 630 Core 969 | 69 898 . . . . . . 2 Treads 1666 | 5 947 714 . . . . . . Legs . | . . . . . . . . . Wheels . | . . . . . . . . . Hover . | . . . . . . . . . Flight 10694 | . . . 4382 952 732 611 3389 628 Fastest Speed 23 | 50 50 160 31 31 31 29 23 23 Average Speed 46 | 57 106 160 31 31 31 29 26 23 Slowest Speed 200 | 160 160 160 34 31 31 31 104 200 Overloaded Moves . | . . . . . . . . . Propulsion Burnouts . | . . . . . . . . . Robots Hopped 87 | . . . 31 10 . 10 34 2 Potential Cave-ins . | . . . . . . . . . Cave-ins Triggered . | . . . . . . . . . Exploration Rate (%) 81 | 5 100 100 98 99 90 97 97 45 Regions Visited 8 Branch Regions 4 Pre-discovered Areas 8 | . 3 1 3 1 . . . . Known Exits Taken 3 | . . . 1 . . 1 1 . Unknown Exits Taken 5 | 1 1 1 . 1 1 . . . Scrap Searched 3 | . . 1 . 1 . 1 . . Spaces Dug 187 | . . . 36 . . 8 94 49 Terrain Destroyed 900 | . . 1 288 27 . 8 384 192 Melee 5 | . . . . . . . . 5 Projectile 6 | . . 1 . . . . 5 . AOE 889 | . . . 288 27 . 8 379 187 Terrain Rammed . | . . . . . . . . . Walls Destroyed . | . . . . . . . . . Machines Disabled . | . . . . . . . . . Actions | -11 -10 -10 -9 -9 -9 -8 -8 -8 --------- Run | Yrd Mat Min Mat Min Exi Min Mat Gar Total 15479 | 127 2226 775 5302 1027 749 613 3802 858 Wait 1267 | 35 217 19 658 50 . 2 165 121 Move 13151 | 73 1844 713 4321 931 731 590 3322 626 Hop 83 | . . . 29 10 . 10 32 2 Pick Up 65 | 4 20 5 16 2 4 . 14 . Fast Attach 30 | 6 4 1 4 . . . 13 2 Attach 26 | . 5 . 10 1 1 . 6 3 Detach 11 | 1 2 . 1 . . . 4 3 Swap 116 | 2 17 6 37 6 3 4 37 4 Drop 97 | . 12 5 37 3 5 2 30 3 Fire 493 | 6 105 25 178 24 1 5 120 29 Melee 104 | . . . . . 4 . 59 41 Ram . | . . . . . . . . . Kick . | . . . . . . . . . Crush 1 | . . 1 . . . . . . Escape Stasis 24 | . . . . . . . . 24 Rewire . | . . . . . . . . . Trap 11 | . . . 11 . . . . . Miscellaneous . | . . . . . . . . . Route ------- -11/Scrapyard -10/Materials (discovered 6 exits: *Mat x3 / [*Min x2] / *Sub) -10/Mines (discovered 3 exits: *Mat x2 / *Sub) -9/Materials (discovered 5 exits: *Mat x3 / *Min x2) -9/Mines (discovered 3 exits: *Mat x2 / *Exi) -9/Exiles -8/Mines (discovered 2 exits: *Mat x2) -8/Materials (discovered 4 exits: *Fac x3 / Gar) -8/Garrison (discovered 1 exit: *Fac) History --------- Turn | Location | Event 13 | -11/Scrapyard | Discovered new exit (range 15) 112 | -11/Scrapyard | Entered Materials 227 | -10/Materials | Discovered new exit (range 16) 265 | -10/Materials | Discovered new exit (range 7) 316 | -10/Materials | Build established: Mutant 345 | -10/Materials | Discovered new exit (range 14) 866 | -10/Materials | Discovered new exit (range 6) 927 | -10/Materials | Discovered new exit (range 17) 978 | -10/Materials | Central database locked down 1033 | -10/Materials | Learned 4 Recycling zone layouts 1046 | -10/Materials | Core integrity fell below 50% 1080 | -10/Materials | Learned location of Storage (-7) 1116 | -10/Materials | Identified exit to Subcaves 1116 | -10/Materials | Learned location of 1 exit from Materials 1162 | -10/Materials | Learned location of 1 exit from Recycling 1173 | -10/Materials | Learned 2 Mines zone layouts 1194 | -10/Materials | Loaded intel: 2 recycling unit locations 1261 | -10/Materials | Learned 2 Storage zone layouts 1927 | -10/Materials | Repaired Lgt. Treads 1955 | -10/Materials | Repaired Lgt. Treads 2657 | -10/Materials | Entered Mines 2838 | -10/Mines | Discovered exit to Subcaves (range 8) 2869 | -10/Mines | Discovered new exit (range 4) 3031 | -10/Mines | Assisted by bots powering up and referring to "LRC-V3" 3077 | -10/Mines | Received a Rocket Launcher from a helpful Derelict 3112 | -10/Mines | Discovered new exit (range 9) 3410 | -10/Mines | Excavation squad dispatched 3410 | -10/Mines | A large section of the Mines collapsed 3913 | -10/Mines | Entered Materials 3913 | -9/Materials | Accompanied by 1 ally 3913 | -9/Materials | Evolved 2 slots: Propulsion x2 3914 | -9/Materials | Identified exit to Mines 3915 | -9/Materials | Identified exit to Materials 4101 | -9/Materials | Destroyed 9 combat bots 4284 | -9/Materials | Discovered exit to Materials (range 9) 4398 | -9/Materials | Repaired Flight Unit 4706 | -9/Materials | Build established: Scavenger-Sprinter 4797 | -9/Materials | Discovered exit to Materials (range 15) 4955 | -9/Materials | Central database locked down 5020 | -9/Materials | Repaired Flight Unit+ 5130 | -9/Materials | Learned 4 Recycling zone layouts 5166 | -9/Materials | Loaded intel: 7 trap records 5230 | -9/Materials | Loaded intel: 2 recycling unit locations 5276 | -9/Materials | Learned Storage stockpile data 5513 | -9/Materials | First assault squad dispatched 5553 | -9/Materials | Build established: Sprinter 6364 | -9/Materials | Sterilization system engaged 6364 | -9/Materials | Non-combat units ordered to evacuate 6464 | -9/Materials | Combat units ordered to evacuate 6500 | -9/Materials | Entered Mines 6525 | -9/Mines | Met a Derelict bent on vengeance 6555 | -9/Mines | Discovered exit to Materials (range 15) 6563 | -9/Mines | Deemed a non-threat by the Exiles lab entrance 6563 | -9/Mines | Discovered new exit (range 5) 6714 | -9/Mines | Learned Materials stockpile data 6730 | -9/Mines | Discovered exit to Materials (range 16) 6748 | -9/Mines | Found a damaged Exp. Sensor Array with a note attached 6748 | -9/Mines | Found Prototype Device 6748 | -9/Mines | Identified Exp. Sensor Array 6924 | -9/Mines | Entered Exiles 6933 | -9/Exiles | Met 8R-AWN 6940 | -9/Exiles | Met EX-HEX 6960 | -9/Exiles | Met EX-DEC 6974 | -9/Exiles | Visited The Gauntlet 7023 | -9/Exiles | Discovered new exit (range 10) 7041 | -9/Exiles | Met EX-BIN 7046 | -9/Exiles | Aligned with FarCom system 7046 | -9/Exiles | Given EX-Vault access code 7053 | -9/Exiles | Opened EX-Vault 7058 | -9/Exiles | Found Firepult 7066 | -9/Exiles | Found Deploy-a-Sentry 7068 | -9/Exiles | Found Deploy-a-Sentry 7076 | -9/Exiles | Warned to stay clear of 0b10 Research branches 7133 | -9/Exiles | Found Deploy-a-Sentry 7161 | -9/Exiles | Attacked by the Exiles 7171 | -9/Exiles | Stole two prototypes: Firepult, Deploy-a-Sentry 7171 | -9/Exiles | Entered Mines 7318 | -8/Mines | Discovered exit to Materials (range 4) 7372 | -8/Mines | Discovered exit to Materials (range 10) 7376 | -8/Mines | Entered Materials 7376 | -8/Materials | Evolved 2 slots: Propulsion x1, Weapon x1 7643 | -8/Materials | Discovered new exit (range 16) 7769 | -8/Materials | Identified exit to Garrison 8046 | -8/Materials | Repaired Surge Thruster? 8176 | -8/Materials | First assault squad dispatched 8188 | -8/Materials | Repaired Imp. Flight Unit 8292 | -8/Materials | Discovered new exit (range 5) 8418 | -8/Materials | Learned Factory emergency access door positions 8473 | -8/Materials | Learned Factory terminal intel 8518 | -8/Materials | Learned location of 2 exits from Factory 8555 | -8/Materials | Learned 2 Storage zone layouts 8600 | -8/Materials | Learned 4 Lower Caves zone layouts 8656 | -8/Materials | Identified exit to Factory 8908 | -8/Materials | High security lockdown imminent 8944 | -8/Materials | Sterilization system engaged 8944 | -8/Materials | Non-combat units ordered to evacuate 8956 | -8/Materials | Core integrity fell below 50% 8981 | -8/Materials | Entered Garrison 9033 | -8/Garrison | Triggered checkpoint 9072 | -8/Garrison | Garrison Relay disabled 9092 | -8/Garrison | Triggered checkpoint 9142 | -8/Garrison | DAS Turret deployed 9146 | -8/Garrison | Triggered checkpoint 9191 | -8/Garrison | Triggered checkpoint 9238 | -8/Garrison | Build established: Scavenger-Sprinter 9238 | -8/Garrison | Triggered checkpoint 9289 | -8/Garrison | Discovered exit to Factory (range 13) 9323 | -8/Garrison | Triggered checkpoint 9443 | -8/Garrison | Core integrity fell below 20% 9449 | -8/Garrison | Destroyed by G-47 Trooper with Particle Gun Last Messages --------------- 09355_ Acquired Imp. Heat Sink. 09378_ System corrupted: Heat flow error (+198). 09382_ The unstable cave ceiling collapses. 09388_ Extracted 150 matter. 09389_ Extracted 6 matter. 09394_ System corrupted: Matter fused (-10). 09394_ Extracted 10 matter. 09404_ Y-45 Defender Imp. Ion Engine severed. 09404_ Imp. VTOL Module destroyed. 09413_ Surge Thruster+ destroyed. 09413_ Enh. Autogun destroyed. 09419_ Y-45 Defender destroyed. 09423_ Critical hit (Burn: +37). 09431_ Surge Thruster+ destroyed. 09435_ Lgt. Nuclear Core+ destroyed. 09436_ Imp. Heat Sink destroyed. 09437_ Imp. VTOL Module destroyed. 09439_ FKVE2E%5UF OGBWMCD%P 09439_ Critical hit (Burn: +37). 09446_ Dropped Deploy-a-Sentry. Map ----- +----------------------------------------------------+ | ??????????????????#! ##+### ##+##T## | | ????????????????????????????# #???##### ##""""## | | ????????????????????#+#?????# #??#????? #??????? | | ????????????????????# #????## #? #????? #?+????? | | ????????###########?# #????# ## ###### #??????? | | ????????#""""" #?# #????# # + +??????? | | ????????#" " #?# #????# ## # #? #??????? | | ????????#" ###"###### = ## #??????? | | ??????###" " ## #??????? | | ??????#"""" """ " #??????? | | ????????# " ## ### # ## #??????? | | ????????# ## ## ##? #??????? | | ????????# ## #### ## # ##?? #??????? | | ????????# ## #?# # ## # ##???????????? | | ????????##### ###### #?# # =# #?#????????????? | | ????????????# #????# #?## #??????????????? | | ????????????# #????# #??# #####??????????????? | | ????????????# #????# #??## #??????????????????? | | ????????????# #????# #???# #??????????????????? | | ?????######## #??### #???# # ###????????????????? | | ?????#""" ## #### #??#### #????????????????? | | ?????#" + < #??# g +?????+??????????? | | ?????#"""" ####### #?##g## #????????????????? | | ?????#######?????######?#! !# ###????????????????? | | ????????????????????????#!&!# #??????????????????? | | ????????????????????????#@=!# #??????????????????? | | ????????????????????????##Y## ??????????????????? | | ?????????????????????????#%####??????????+???????? | | ?????????????????????????#!#?????????????????????? | | ????????????????????????? #?????????????????????? | | ????????????????????????? "?????????????????????? | | ???????????????????????? T#?????????????????????? | | ????????????????????????####?????????????????????? | | ?????????????????????????????????????????????????? | | ?????????????????????????????????????????????????? | | ?????????????????????????????????????????????????? | | ?????????????????????????????????????????????????? | | ?????????????????????????????????????????????????? | | ?????????????????????????????????????????????????? | | ?????????????????????????????????????????????????? | | ?????????????????????????????????????????????????? | | ?????????????????????????????????????????????????? | | ?????????????????????????????????????????????????? | | ?????????????????????????????????????????????????? | | | | | | | | | | | | | +----------------------------------------------------+ Best States ------------- Heat Dissipation 45 Energy Generation 15 Energy Capacity 160 Matter Stores 300 Matter Capacity 300 Sight Range 18 Robot Scan Range 20 Terrain Scan Range 16 Terrain Scan Density 10 Additional Mass Support 6 Armor Coverage 225 Evasion (%) 73 Targeting Accuracy 5 Target Analysis 5 Recoil Reduction 2 Item Schematics ----------------- Flight Unit | -9/Materials | Scanalyzed Rocket Launcher | -9/Materials | Scanalyzed EM Pulse Gun | -9/Materials | Extracted Arm. Wheel | -9/Materials | Extracted Surge Thruster | -8/Mines | Hacked Robot Schematics ------------------ M-13 Machinist | -10/Materials | Hacked Fabricated ------------ Nothing Repaired ---------- Lgt. Treads | 38% | -10/Materials Lgt. Treads | 46% | -10/Materials Flight Unit | 35% | -9/Materials Flight Unit | 50% | -9/Materials Surge Thruster | 10% | -8/Materials Imp. Flight Unit | 22% | -8/Materials Studied --------- Flight Unit | -9/Materials | Hacked Lgt. Ion Engine | -9/Materials | Hacked Rocket Launcher | -9/Materials | Hacked Surge Thruster | -8/Materials | Hacked Lgt. Nuclear Core | -8/Materials | Hacked Minigun | -8/Materials | Hacked Alien Tech Used ----------------- None Achievements -------------- None Challenges ------------ None Game ------ Seed SuperchargedColdGravjet Manual? 0 Play Time 01:44:15 Cumulative 1420.2 hours Start 2025.12.11 @ 20:39:48 End 2025.12.11 @ 22:31:40 Sessions 1 Manual Loads 0 Difficulty Rogue Special Mode None Game No. 644 Rogue 644 Adventurer 0 Explorer 0 Win Type - Total 28 Types 13/5/3/0/1/1/2/2/0/1 Lore% 93 Gallery% 90 Achievement% 70 Wizard Run 0 Options --------- Layout 0 ASCII 0 Keyboard 0 Movement Numpad Keybinds 0 Fullscreen 2 Font 24/Smallcaps Map View 76x50 Zoom Use 0% Tactical HUD 1 Map Filters NONE Filters SHIFT_HUE(315) Steam 1 RUN: 06b06cb7-ccc0-4afb-9b2f-1d36a4884ec7